[Event "Late-Titled-Tuesday-Blitz-September-26-2023"]
[Site "Chess.com"]
[Date "2023.09.26"]
[Round "9"]
[White "victormago"]
[Black "Chempiblinka"]
[Result "0-1"]
[WhiteElo "2505"]
[BlackElo "2324"]
[TimeControl "180+1"]
[EndTime "15:39:52 PDT"]
[Termination "Chempiblinka won by resignation"]

1. d4 {[%clk 0:02:58.9]} 1... Nf6 {[%clk 0:02:49.8]} 2. c4 {[%clk 0:02:58.7]}
2... g6 {[%clk 0:02:10.4]} 3. Nc3 {[%clk 0:02:56.2]} 3... Bg7 {[%clk 0:02:11]}
4. e4 {[%clk 0:02:55.3]} 4... d6 {[%clk 0:02:11.9]} 5. Be2 {[%clk 0:02:54.1]}
5... O-O {[%clk 0:02:12.7]} 6. Bg5 {[%clk 0:02:54]} 6... c5 {[%clk 0:02:12.5]}
7. d5 {[%clk 0:02:53.2]} 7... h6 {[%clk 0:02:13.2]} 8. Be3 {[%clk 0:02:52.6]}
8... Qa5 {[%clk 0:02:12.3]} 9. Qd2 {[%clk 0:02:50.9]} 9... b5 {[%clk 0:02:13.2]}
10. cxb5 {[%clk 0:02:48.8]} 10... a6 {[%clk 0:02:13.7]} 11. bxa6 {[%clk
0:02:45.3]} 11... Bxa6 {[%clk 0:02:14.6]} 12. Bxa6 {[%clk 0:02:45.3]} 12... Nxa6
{[%clk 0:02:13.5]} 13. Nge2 {[%clk 0:02:42.7]} 13... Qb4 {[%clk 0:02:13.4]} 14.
f3 {[%clk 0:02:41]} 14... Rfb8 {[%clk 0:02:14.3]} 15. Rb1 {[%clk 0:02:35.5]}
15... Nd7 {[%clk 0:02:09.4]} 16. O-O {[%clk 0:02:31.5]} 16... Kh7 {[%clk
0:02:03.3]} 17. b3 {[%clk 0:02:20.9]} 17... Qa3 {[%clk 0:01:55.6]} 18. Na4
{[%clk 0:01:49.3]} 18... Nb4 {[%clk 0:01:50.7]} 19. Nec3 {[%clk 0:01:49.4]}
19... Nb6 {[%clk 0:01:29.1]} 20. Rf2 {[%clk 0:01:29.7]} 20... Nxa4 {[%clk
0:01:29.4]} 21. Nxa4 {[%clk 0:01:28]} 21... c4 {[%clk 0:01:18.7]} 22. Nb6 {[%clk
0:00:57.3]} 22... c3 {[%clk 0:01:09.8]} 23. Qc1 {[%clk 0:00:48.8]} 23... Qxc1+
{[%clk 0:01:06.6]} 24. Bxc1 {[%clk 0:00:47.7]} 24... Rxa2 {[%clk 0:01:06.6]} 25.
Rxa2 {[%clk 0:00:15.1]} 25... Nxa2 {[%clk 0:01:07.2]} 26. Nd7 {[%clk 0:00:15.4]}
26... Rb7 {[%clk 0:01:01.6]} 27. Ra1 {[%clk 0:00:15.2]} 27... Nxc1 {[%clk
0:00:58.7]} 28. Rxc1 {[%clk 0:00:13.2]} 28... Rxd7 {[%clk 0:00:58.5]} 0-1

[Event "Late-Titled-Tuesday-Blitz-September-26-2023"]
[Site "Chess.com"]
[Date "2023.09.26"]
[Round "9"]
[White "bylavochka"]
[Black "FERNANDEZL1983"]
[Result "0-1"]
[WhiteElo "2313"]
[BlackElo "2534"]
[TimeControl "180+1"]
[EndTime "15:39:56 PDT"]
[Termination "FERNANDEZL1983 won on time"]

1. e4 {[%clk 0:03:00.9]} 1... c5 {[%clk 0:02:58.6]} 2. Nf3 {[%clk 0:03:00.5]}
2... a6 {[%clk 0:02:59.2]} 3. d4 {[%clk 0:03:00.4]} 3... cxd4 {[%clk 0:02:58.7]}
4. Nxd4 {[%clk 0:03:01.3]} 4... Nf6 {[%clk 0:02:59.1]} 5. Nc3 {[%clk 0:03:00.9]}
5... e5 {[%clk 0:02:59.7]} 6. Nb3 {[%clk 0:02:51.8]} 6... Bb4 {[%clk 0:03:00]}
7. Bd3 {[%clk 0:02:50.6]} 7... O-O {[%clk 0:02:59.3]} 8. O-O {[%clk 0:02:50.6]}
8... Bxc3 {[%clk 0:02:58.7]} 9. bxc3 {[%clk 0:02:48.6]} 9... d6 {[%clk
0:02:59.2]} 10. Ba3 {[%clk 0:02:13.9]} 10... Qc7 {[%clk 0:02:58.7]} 11. f4
{[%clk 0:01:58.1]} 11... Ng4 {[%clk 0:02:40.8]} 12. Qd2 {[%clk 0:01:15]} 12...
Nc6 {[%clk 0:02:36.3]} 13. h3 {[%clk 0:01:07.8]} 13... Nf6 {[%clk 0:02:34.2]}
14. fxe5 {[%clk 0:01:03.4]} 14... Nxe5 {[%clk 0:02:34.8]} 15. Rxf6 {[%clk
0:00:52.1]} 15... gxf6 {[%clk 0:02:32.7]} 16. Rf1 {[%clk 0:00:52.5]} 16... Be6
{[%clk 0:02:13]} 17. Rxf6 {[%clk 0:00:47.4]} 17... Rac8 {[%clk 0:02:12.1]} 18.
Bb2 {[%clk 0:00:30.7]} 18... Kh8 {[%clk 0:01:53.6]} 19. c4 {[%clk 0:00:22.5]}
19... Rg8 {[%clk 0:01:52.2]} 20. c5 {[%clk 0:00:18.8]} 20... Qe7 {[%clk
0:01:45.7]} 21. Qf4 {[%clk 0:00:15.1]} 21... Rg7 {[%clk 0:01:37.1]} 22. cxd6
{[%clk 0:00:13.4]} 22... Nxd3 {[%clk 0:01:29.2]} 23. dxe7 {[%clk 0:00:11.3]}
23... Nxf4 {[%clk 0:01:27.2]} 24. Rxf4 {[%clk 0:00:12.2]} 24... Re8 {[%clk
0:01:26.7]} 25. Bf6 {[%clk 0:00:11]} 25... Kg8 {[%clk 0:01:25.2]} 26. Nc5 {[%clk
0:00:10.8]} 26... Rg6 {[%clk 0:01:24.6]} 27. e5 {[%clk 0:00:10.2]} 27... Bxh3
{[%clk 0:01:24]} 28. Nxb7 {[%clk 0:00:07.4]} 28... Bxg2 {[%clk 0:01:20.9]} 29.
Nd6 {[%clk 0:00:05.2]} 29... Rb8 {[%clk 0:01:20.2]} 30. Kf2 {[%clk 0:00:02.3]}
30... Bc6 {[%clk 0:01:18.9]} 31. Rc4 {[%clk 0:00:03.2]} 31... Be8 {[%clk
0:01:18.3]} 32. Rc8 {[%clk 0:00:02.9]} 32... Rxc8 {[%clk 0:01:17.7]} 33. Nxc8
{[%clk 0:00:03.8]} 33... Rg4 {[%clk 0:01:16]} 34. Nd6 {[%clk 0:00:04]} 34... Bd7
{[%clk 0:01:16.5]} 35. Ke3 {[%clk 0:00:02]} 35... Ra4 {[%clk 0:01:15.4]} 0-1

[Event "Late-Titled-Tuesday-Blitz-September-26-2023"]
[Site "Chess.com"]
[Date "2023.09.26"]
[Round "9"]
[White "Dhaydon19"]
[Black "IgorBjelobrk"]
[Result "0-1"]
[WhiteElo "2727"]
[BlackElo "2642"]
[TimeControl "180+1"]
[EndTime "15:40:03 PDT"]
[Termination "IgorBjelobrk won by checkmate"]

1. d4 {[%clk 0:03:00.9]} 1... e6 {[%clk 0:02:59.6]} 2. Nf3 {[%clk 0:02:59.3]}
2... c5 {[%clk 0:02:59.2]} 3. e3 {[%clk 0:02:58.4]} 3... b6 {[%clk 0:02:58.1]}
4. Bd3 {[%clk 0:02:57.6]} 4... Bb7 {[%clk 0:02:58.3]} 5. Nbd2 {[%clk 0:02:57.5]}
5... Nf6 {[%clk 0:02:57.6]} 6. b3 {[%clk 0:02:57.2]} 6... Nc6 {[%clk 0:02:47.8]}
7. a3 {[%clk 0:02:56.2]} 7... cxd4 {[%clk 0:02:45.8]} 8. exd4 {[%clk 0:02:56.1]}
8... d5 {[%clk 0:02:45.7]} 9. O-O {[%clk 0:02:54.3]} 9... Bd6 {[%clk 0:02:45.9]}
10. Bb2 {[%clk 0:02:54.2]} 10... O-O {[%clk 0:02:45.7]} 11. Re1 {[%clk
0:02:51.6]} 11... Rc8 {[%clk 0:02:45.9]} 12. Ne5 {[%clk 0:02:47.6]} 12... Qc7
{[%clk 0:02:36.1]} 13. Qf3 {[%clk 0:02:42]} 13... Ne7 {[%clk 0:02:31.7]} 14. a4
{[%clk 0:02:36.9]} 14... Ne4 {[%clk 0:02:27.6]} 15. Qe2 {[%clk 0:02:24.6]} 15...
Bb4 {[%clk 0:02:24]} 16. Bxe4 {[%clk 0:02:20.3]} 16... dxe4 {[%clk 0:02:23.7]}
17. c3 {[%clk 0:02:17.1]} 17... Bd6 {[%clk 0:01:57.4]} 18. Nxe4 {[%clk
0:02:11.9]} 18... Bxe5 {[%clk 0:01:57.4]} 19. dxe5 {[%clk 0:02:11.4]} 19... Qxe5
{[%clk 0:01:57.6]} 20. Ng3 {[%clk 0:02:05.8]} 20... Qxe2 {[%clk 0:01:57]} 21.
Rxe2 {[%clk 0:02:05.8]} 21... Rfd8 {[%clk 0:01:53.4]} 22. c4 {[%clk 0:02:03.5]}
22... Rd3 {[%clk 0:01:49.1]} 23. Re3 {[%clk 0:01:57.5]} 23... Rxe3 {[%clk
0:01:48.5]} 24. fxe3 {[%clk 0:01:57]} 24... Rd8 {[%clk 0:01:49.2]} 25. Bd4
{[%clk 0:01:44.9]} 25... e5 {[%clk 0:01:45.9]} 26. Bxe5 {[%clk 0:01:39.8]} 26...
Rd2 {[%clk 0:01:45.9]} 27. e4 {[%clk 0:01:37.8]} 27... Ng6 {[%clk 0:01:45.6]}
28. Bc3 {[%clk 0:01:30.8]} 28... Rc2 {[%clk 0:01:44.2]} 29. Bd4 {[%clk
0:01:26.7]} 29... Nf4 {[%clk 0:01:41.9]} 30. Bf2 {[%clk 0:01:19.2]} 30... h5
{[%clk 0:01:38.3]} 31. h4 {[%clk 0:01:15.3]} 31... f5 {[%clk 0:01:09.1]} 32.
exf5 {[%clk 0:00:50.6]} 32... Bxg2 {[%clk 0:01:04.8]} 33. Rd1 {[%clk 0:00:48.1]}
33... Bf3 {[%clk 0:00:58.2]} 34. Rd8+ {[%clk 0:00:46.5]} 34... Kh7 {[%clk
0:00:58.5]} 35. Be3 {[%clk 0:00:44.8]} 35... Nh3+ {[%clk 0:00:44.1]} 36. Kf1
{[%clk 0:00:43.7]} 36... Rc3 {[%clk 0:00:39.8]} 37. Bd4 {[%clk 0:00:37.6]} 37...
Rc1# {[%clk 0:00:37.7]} 0-1

[Event "Late-Titled-Tuesday-Blitz-September-26-2023"]
[Site "Chess.com"]
[Date "2023.09.26"]
[Round "9"]
[White "micke12a"]
[Black "valemava"]
[Result "1-0"]
[WhiteElo "2355"]
[BlackElo "2393"]
[TimeControl "180+1"]
[EndTime "15:40:03 PDT"]
[Termination "micke12a won by resignation"]

1. e3 {[%clk 0:02:58.6]} 1... Nf6 {[%clk 0:02:57.1]} 2. Nf3 {[%clk 0:02:57.7]}
2... b6 {[%clk 0:02:56.9]} 3. b3 {[%clk 0:02:56.5]} 3... Bb7 {[%clk 0:02:57.1]}
4. c4 {[%clk 0:02:57.3]} 4... c5 {[%clk 0:02:57]} 5. Bb2 {[%clk 0:02:57.6]} 5...
e6 {[%clk 0:02:57.5]} 6. Nc3 {[%clk 0:02:57.8]} 6... Be7 {[%clk 0:02:57.6]} 7.
d4 {[%clk 0:02:57.9]} 7... cxd4 {[%clk 0:02:57.2]} 8. Nxd4 {[%clk 0:02:54.6]}
8... O-O {[%clk 0:02:56.3]} 9. Rg1 {[%clk 0:02:52.2]} 9... a6 {[%clk 0:02:54.9]}
10. g4 {[%clk 0:02:52.2]} 10... Ne4 {[%clk 0:02:46.1]} 11. Qf3 {[%clk
0:02:42.8]} 11... d5 {[%clk 0:02:36.2]} 12. Nxe4 {[%clk 0:02:39.7]} 12... dxe4
{[%clk 0:02:35.8]} 13. Qg3 {[%clk 0:02:37.4]} 13... Nc6 {[%clk 0:02:34.7]} 14.
g5 {[%clk 0:02:31.8]} 14... Nxd4 {[%clk 0:02:33.4]} 15. Bxd4 {[%clk 0:02:30.7]}
15... Bb4+ {[%clk 0:02:31.8]} 16. Ke2 {[%clk 0:02:24.6]} 16... Re8 {[%clk
0:02:27.3]} 17. Qe5 {[%clk 0:02:20.9]} 17... Bf8 {[%clk 0:02:22]} 18. h4 {[%clk
0:02:08]} 18... b5 {[%clk 0:02:12.9]} 19. cxb5 {[%clk 0:01:52.9]} 19... axb5
{[%clk 0:02:12.4]} 20. h5 {[%clk 0:01:49.7]} 20... Qb8 {[%clk 0:02:11.7]} 21.
Qxb8 {[%clk 0:01:38]} 21... Rexb8 {[%clk 0:02:03.8]} 22. Rg4 {[%clk 0:01:33.8]}
22... Bd5 {[%clk 0:02:02.3]} 23. Bg2 {[%clk 0:01:31.4]} 23... Bxb3 {[%clk
0:01:57.8]} 24. axb3 {[%clk 0:01:30.2]} 24... Rxa1 {[%clk 0:01:53.2]} 25. Bxa1
{[%clk 0:01:31.1]} 25... Ra8 {[%clk 0:01:52.9]} 26. Bc3 {[%clk 0:01:23.4]} 26...
Ra2+ {[%clk 0:01:49.9]} 27. Ke1 {[%clk 0:01:22.5]} 27... Rc2 {[%clk 0:01:49.8]}
28. Bd2 {[%clk 0:01:20.7]} 28... Rb2 {[%clk 0:01:42.3]} 29. b4 {[%clk
0:01:16.6]} 29... Bxb4 {[%clk 0:01:26]} 30. Bxb4 {[%clk 0:01:15.8]} 30... Rxb4
{[%clk 0:01:26.9]} 31. Rxe4 {[%clk 0:01:15.8]} 31... Rb1+ {[%clk 0:01:25.3]} 32.
Ke2 {[%clk 0:01:16.4]} 32... Rb2+ {[%clk 0:01:25.7]} 33. Kf3 {[%clk 0:01:13.6]}
33... Kf8 {[%clk 0:01:25.9]} 34. h6 {[%clk 0:01:13.1]} 34... gxh6 {[%clk
0:01:25.6]} 35. gxh6 {[%clk 0:01:13.2]} 35... Ke7 {[%clk 0:01:26.1]} 36. Rg4
{[%clk 0:01:10.7]} 36... b4 {[%clk 0:01:23]} 37. Bf1 {[%clk 0:01:07.2]} 37... b3
{[%clk 0:01:22.1]} 38. Rb4 {[%clk 0:01:05]} 38... Rb1 {[%clk 0:01:21.8]} 39. Bd3
{[%clk 0:01:04.8]} 39... Rb2 {[%clk 0:01:21]} 40. Bxh7 {[%clk 0:01:03.9]} 40...
Ra2 {[%clk 0:01:13.6]} 41. Rxb3 {[%clk 0:01:02.3]} 41... Ra1 {[%clk 0:01:11.6]}
42. Bd3 {[%clk 0:00:59.2]} 42... Rh1 {[%clk 0:01:12.5]} 43. h7 {[%clk
0:00:58.9]} 43... Kf6 {[%clk 0:01:12.6]} 44. Rb4 {[%clk 0:00:57]} 44... Kg7
{[%clk 0:01:11.5]} 45. Rg4+ {[%clk 0:00:56.6]} 45... Kf6 {[%clk 0:01:09.7]} 46.
Rg8 {[%clk 0:00:56.1]} 46... Rh3+ {[%clk 0:01:08.8]} 47. Kg2 {[%clk 0:00:55.8]}
47... Rh5 {[%clk 0:01:07.7]} 48. h8=Q+ {[%clk 0:00:55]} 48... Rxh8 {[%clk
0:01:07.2]} 49. Rxh8 {[%clk 0:00:55.9]} 49... Ke5 {[%clk 0:01:07.7]} 50. Rh7
{[%clk 0:00:55.7]} 50... f5 {[%clk 0:01:08.6]} 51. f4+ {[%clk 0:00:54.4]} 51...
Kd5 {[%clk 0:01:08.3]} 52. Kf3 {[%clk 0:00:54.5]} 52... Kd6 {[%clk 0:01:08.2]}
53. Rh6 {[%clk 0:00:55]} 53... Kd5 {[%clk 0:01:05.9]} 54. Bxf5 {[%clk
0:00:55.9]} 54... exf5 {[%clk 0:00:59.5]} 55. Rf6 {[%clk 0:00:56.3]} 55... Kc4
{[%clk 0:00:58.6]} 56. Rxf5 {[%clk 0:00:56.4]} 56... Kd3 {[%clk 0:00:58.8]} 57.
e4 {[%clk 0:00:57.1]} 1-0

[Event "Late-Titled-Tuesday-Blitz-September-26-2023"]
[Site "Chess.com"]
[Date "2023.09.26"]
[Round "9"]
[White "ArtemDyachuk"]
[Black "SpeedofLight0"]
[Result "0-1"]
[WhiteElo "2702"]
[BlackElo "3041"]
[TimeControl "180+1"]
[EndTime "15:40:06 PDT"]
[Termination "SpeedofLight0 won by checkmate"]

1. e4 {[%clk 0:03:00.9]} 1... c6 {[%clk 0:02:58.3]} 2. d4 {[%clk 0:02:56.6]}
2... d5 {[%clk 0:02:58.3]} 3. e5 {[%clk 0:02:53.6]} 3... Bf5 {[%clk 0:02:57.7]}
4. Nf3 {[%clk 0:02:53.5]} 4... e6 {[%clk 0:02:57.8]} 5. Be2 {[%clk 0:02:53.5]}
5... Ne7 {[%clk 0:02:56.2]} 6. O-O {[%clk 0:02:53.3]} 6... h6 {[%clk 0:02:54.3]}
7. Nbd2 {[%clk 0:02:50.9]} 7... Nd7 {[%clk 0:02:53.2]} 8. Nb3 {[%clk 0:02:50.7]}
8... Bh7 {[%clk 0:02:52]} 9. Re1 {[%clk 0:02:39.1]} 9... Ng6 {[%clk 0:02:50.5]}
10. Bd3 {[%clk 0:02:36]} 10... Be7 {[%clk 0:02:50]} 11. g3 {[%clk 0:02:25.8]}
11... O-O {[%clk 0:02:49.8]} 12. h4 {[%clk 0:02:25.3]} 12... Re8 {[%clk
0:02:50.3]} 13. a4 {[%clk 0:02:20.5]} 13... c5 {[%clk 0:02:48.4]} 14. dxc5
{[%clk 0:02:19.8]} 14... Nxc5 {[%clk 0:02:48.7]} 15. Bb5 {[%clk 0:02:12.3]}
15... Nd7 {[%clk 0:02:38.2]} 16. a5 {[%clk 0:02:12.2]} 16... a6 {[%clk
0:02:37.5]} 17. Ba4 {[%clk 0:02:11.9]} 17... Rc8 {[%clk 0:02:34.7]} 18. Be3
{[%clk 0:02:00.9]} 18... Ngxe5 {[%clk 0:02:25.6]} 19. Nxe5 {[%clk 0:01:58.1]}
19... Nxe5 {[%clk 0:02:26]} 20. Bb6 {[%clk 0:01:54.4]} 20... Qd6 {[%clk
0:02:25.2]} 21. Bxe8 {[%clk 0:01:45.7]} 21... Bxc2 {[%clk 0:02:23]} 22. Qe2
{[%clk 0:00:48.9]} 22... Bxb3 {[%clk 0:02:16.2]} 23. Ba4 {[%clk 0:00:47.4]}
23... Bxa4 {[%clk 0:02:08.6]} 24. Rxa4 {[%clk 0:00:48.3]} 24... Nc4 {[%clk
0:02:04.3]} 25. Bd4 {[%clk 0:00:48.2]} 25... Qc6 {[%clk 0:01:57]} 26. Raa1
{[%clk 0:00:38.2]} 26... Qb5 {[%clk 0:01:54.7]} 27. Qg4 {[%clk 0:00:33.6]} 27...
Bf8 {[%clk 0:01:53.2]} 28. Rxe6 {[%clk 0:00:33.4]} 28... Qd7 {[%clk 0:01:41.3]}
29. Re4 {[%clk 0:00:30.2]} 29... f5 {[%clk 0:01:40.9]} 30. Re7 {[%clk
0:00:20.3]} 30... Qxe7 {[%clk 0:01:38.4]} 31. Qxf5 {[%clk 0:00:20.4]} 31... Rd8
{[%clk 0:01:35.3]} 32. b3 {[%clk 0:00:13.8]} 32... Nd2 {[%clk 0:01:30.1]} 33.
Be3 {[%clk 0:00:09.8]} 33... Qe4 {[%clk 0:01:19.4]} 34. Qh5 {[%clk 0:00:04]}
34... Nf3+ {[%clk 0:01:18.5]} 35. Kf1 {[%clk 0:00:04.6]} 35... d4 {[%clk
0:01:14.2]} 36. Bf4 {[%clk 0:00:04.7]} 36... d3 {[%clk 0:01:13.4]} 37. Ra4
{[%clk 0:00:03.7]} 37... Qe2+ {[%clk 0:01:13]} 38. Kg2 {[%clk 0:00:03.3]} 38...
Ne1+ {[%clk 0:01:13.9]} 39. Kh3 {[%clk 0:00:03.5]} 39... Qxh5 {[%clk 0:01:14.8]}
40. Rd4 {[%clk 0:00:02.9]} 40... Rxd4 {[%clk 0:01:13.5]} 41. g4 {[%clk
0:00:03.8]} 41... Qd5 {[%clk 0:01:13]} 42. Bg3 {[%clk 0:00:04.6]} 42... Qg2#
{[%clk 0:01:13.3]} 0-1

[Event "Late-Titled-Tuesday-Blitz-September-26-2023"]
[Site "Chess.com"]
[Date "2023.09.26"]
[Round "9"]
[White "Bodhanas"]
[Black "wild3000"]
[Result "0-1"]
[WhiteElo "2118"]
[BlackElo "2360"]
[TimeControl "180+1"]
[EndTime "15:40:07 PDT"]
[Termination "wild3000 won by resignation"]

1. d4 {[%clk 0:02:59.7]} 1... g6 {[%clk 0:02:59.1]} 2. Nf3 {[%clk 0:02:59.1]}
2... Bg7 {[%clk 0:02:59.2]} 3. g3 {[%clk 0:02:57.3]} 3... d5 {[%clk 0:02:58.4]}
4. Bg2 {[%clk 0:02:51.7]} 4... c5 {[%clk 0:02:56.9]} 5. c3 {[%clk 0:02:44.7]}
5... cxd4 {[%clk 0:02:54.2]} 6. cxd4 {[%clk 0:02:44.1]} 6... Nc6 {[%clk
0:02:54.5]} 7. Nc3 {[%clk 0:02:33.4]} 7... Nf6 {[%clk 0:02:54.1]} 8. e3 {[%clk
0:02:31.3]} 8... O-O {[%clk 0:02:53.9]} 9. O-O {[%clk 0:02:28.9]} 9... a6 {[%clk
0:02:54.2]} 10. Ne5 {[%clk 0:02:19.7]} 10... Qd6 {[%clk 0:02:46.8]} 11. Nxc6
{[%clk 0:02:13.9]} 11... bxc6 {[%clk 0:02:45.4]} 12. e4 {[%clk 0:02:10.7]} 12...
dxe4 {[%clk 0:02:40.4]} 13. Bf4 {[%clk 0:02:08.3]} 13... Qb4 {[%clk 0:02:34.4]}
14. Be5 {[%clk 0:01:59.3]} 14... Bf5 {[%clk 0:02:29.5]} 15. Qe2 {[%clk
0:01:48.7]} 15... Rfd8 {[%clk 0:02:23.1]} 16. a3 {[%clk 0:01:28.2]} 16... Qb3
{[%clk 0:02:22.3]} 17. Bxf6 {[%clk 0:01:20]} 17... Bxf6 {[%clk 0:02:21.2]} 18.
Nxe4 {[%clk 0:01:14.7]} 18... Bxd4 {[%clk 0:02:15.4]} 19. Rac1 {[%clk 0:01:03]}
19... Qxb2 {[%clk 0:02:08.2]} 20. Qxb2 {[%clk 0:01:01.9]} 20... Bxb2 {[%clk
0:02:08]} 21. Rxc6 {[%clk 0:01:01.7]} 21... Bxa3 {[%clk 0:02:05.6]} 22. Rc3
{[%clk 0:00:57.8]} 22... Bb4 {[%clk 0:02:04.5]} 23. Rc4 {[%clk 0:00:52.7]} 23...
a5 {[%clk 0:02:04.3]} 24. g4 {[%clk 0:00:42.6]} 24... Be6 {[%clk 0:01:57.2]} 25.
Rc2 {[%clk 0:00:37.6]} 25... Bxg4 {[%clk 0:01:52.9]} 26. Ng5 {[%clk 0:00:34]}
26... Rac8 {[%clk 0:01:48.9]} 27. Rxc8 {[%clk 0:00:29]} 27... Rxc8 {[%clk
0:01:49.8]} 28. h3 {[%clk 0:00:28.8]} 28... Bf5 {[%clk 0:01:48.8]} 29. Bd5
{[%clk 0:00:26.3]} 29... e6 {[%clk 0:01:48.1]} 30. Be4 {[%clk 0:00:23.9]} 30...
Bxe4 {[%clk 0:01:39.3]} 31. Nxe4 {[%clk 0:00:22.4]} 31... Rc4 {[%clk 0:01:39.6]}
32. f3 {[%clk 0:00:20.5]} 32... a4 {[%clk 0:01:38.2]} 33. Ra1 {[%clk 0:00:18.4]}
33... a3 {[%clk 0:01:38.2]} 34. Kg2 {[%clk 0:00:18.9]} 34... Rc2+ {[%clk
0:01:36.9]} 35. Kg3 {[%clk 0:00:19]} 35... a2 {[%clk 0:01:34.8]} 36. h4 {[%clk
0:00:18.7]} 36... f5 {[%clk 0:01:34.6]} 37. Ng5 {[%clk 0:00:15.3]} 37... Bc3
{[%clk 0:01:27.2]} 38. Rxa2 {[%clk 0:00:13.9]} 38... Rxa2 {[%clk 0:01:27]} 39.
f4 {[%clk 0:00:14.2]} 39... Ra6 {[%clk 0:01:24.5]} 40. Kf3 {[%clk 0:00:12.5]}
40... Bf6 {[%clk 0:01:24.2]} 41. Kg3 {[%clk 0:00:12]} 41... Bxg5 {[%clk
0:01:24]} 42. hxg5 {[%clk 0:00:11.8]} 42... e5 {[%clk 0:01:19.4]} 43. fxe5
{[%clk 0:00:11]} 43... Ra4 {[%clk 0:01:19.2]} 44. Kf3 {[%clk 0:00:10.9]} 44...
Kf7 {[%clk 0:01:18.8]} 45. Ke3 {[%clk 0:00:10.4]} 45... Ke6 {[%clk 0:01:18.7]}
0-1

[Event "Late-Titled-Tuesday-Blitz-September-26-2023"]
[Site "Chess.com"]
[Date "2023.09.26"]
[Round "9"]
[White "ChadBiryani"]
[Black "laskakid"]
[Result "1-0"]
[WhiteElo "2502"]
[BlackElo "2329"]
[TimeControl "180+1"]
[EndTime "15:40:13 PDT"]
[Termination "ChadBiryani won by resignation"]

1. c4 {[%clk 0:02:59.2]} 1... Nf6 {[%clk 0:02:59]} 2. Nc3 {[%clk 0:02:58.9]}
2... g6 {[%clk 0:02:59.3]} 3. g3 {[%clk 0:02:59.3]} 3... Bg7 {[%clk 0:02:59.3]}
4. Bg2 {[%clk 0:02:59.8]} 4... O-O {[%clk 0:02:59.4]} 5. e4 {[%clk 0:03:00.4]}
5... d6 {[%clk 0:02:56.3]} 6. Nge2 {[%clk 0:03:00.9]} 6... c5 {[%clk 0:02:55]}
7. O-O {[%clk 0:03:01.4]} 7... Nc6 {[%clk 0:02:54.8]} 8. d3 {[%clk 0:03:00.2]}
8... Bd7 {[%clk 0:02:48.2]} 9. Bg5 {[%clk 0:02:59.7]} 9... Ne8 {[%clk
0:02:41.3]} 10. Qd2 {[%clk 0:02:58]} 10... Nc7 {[%clk 0:02:37.5]} 11. Bh6 {[%clk
0:02:55]} 11... Ne6 {[%clk 0:02:32.4]} 12. Bxg7 {[%clk 0:02:49.1]} 12... Kxg7
{[%clk 0:02:31.8]} 13. f4 {[%clk 0:02:48.7]} 13... Ned4 {[%clk 0:02:27.3]} 14.
f5 {[%clk 0:02:46.5]} 14... f6 {[%clk 0:02:15.6]} 15. Nf4 {[%clk 0:02:41.9]}
15... Qe8 {[%clk 0:02:02]} 16. g4 {[%clk 0:02:37.1]} 16... Ne5 {[%clk 0:01:58]}
17. h3 {[%clk 0:02:35.1]} 17... a6 {[%clk 0:01:46.7]} 18. Nce2 {[%clk
0:02:24.2]} 18... Nxe2+ {[%clk 0:01:38.9]} 19. Qxe2 {[%clk 0:02:19.9]} 19... b5
{[%clk 0:01:32.5]} 20. b3 {[%clk 0:02:19.9]} 20... Rb8 {[%clk 0:01:28.4]} 21.
Rad1 {[%clk 0:02:16.3]} 21... Qf7 {[%clk 0:01:19.6]} 22. h4 {[%clk 0:02:10.4]}
22... bxc4 {[%clk 0:01:02.7]} 23. dxc4 {[%clk 0:02:10]} 23... h6 {[%clk
0:00:41.3]} 24. fxg6 {[%clk 0:01:51]} 24... Nxg6 {[%clk 0:00:39.6]} 25. Nh5+
{[%clk 0:01:51.1]} 25... Kh7 {[%clk 0:00:26.4]} 26. g5 {[%clk 0:01:45.8]} 26...
Qe6 {[%clk 0:00:21.5]} 27. gxf6 {[%clk 0:01:33.2]} 27... exf6 {[%clk 0:00:20.6]}
28. Rd5 {[%clk 0:01:25]} 28... Nxh4 {[%clk 0:00:19.4]} 29. Rf2 {[%clk
0:01:16.3]} 29... Nxg2 {[%clk 0:00:17.4]} 30. Rxg2 {[%clk 0:01:17]} 30... Rg8
{[%clk 0:00:17.7]} 31. Rf5 {[%clk 0:01:00.5]} 31... Rxg2+ {[%clk 0:00:17.5]} 32.
Qxg2 {[%clk 0:01:00.5]} 32... Rg8 {[%clk 0:00:17.7]} 33. Nxf6+ {[%clk
0:01:00.5]} 33... Qxf6 {[%clk 0:00:16]} 34. Rxf6 {[%clk 0:00:59.3]} 34... Rxg2+
{[%clk 0:00:16]} 35. Kxg2 {[%clk 0:00:59.7]} 35... Bc6 {[%clk 0:00:15.2]} 36.
Kf3 {[%clk 0:00:58.4]} 36... Kg7 {[%clk 0:00:14.2]} 37. Rxd6 {[%clk 0:00:59.1]}
37... Ba8 {[%clk 0:00:13.5]} 38. Rxa6 {[%clk 0:00:59.2]} 38... Bb7 {[%clk
0:00:12.7]} 39. Ra7 {[%clk 0:00:59.2]} 1-0